fUSD/lending_fUSD_20260202
["ID","MTS","AMOUNT","RATE_DAILY","PERIOD"]
[404276087,1770023445744,-1870.90758698,0.00016438,2]
[404276089,1770023445755,-1779.48823898,0.00016438,2]
[404276091,1770023445768,-1870.90758698,0.00016438,2]
[404276094,1770023445781,-1870.90758698,0.00016438,2]
[404276096,1770023445794,-1779.48823898,0.00016438,2]
[404276098,1770023445805,-1870.90758698,0.00016438,2]
[404276101,1770023445818,-1870.90758698,0.00016438,2]
[404276103,1770023445830,-1870.90758698,0.00016438,2]
[404276105,1770023445843,-1779.48823898,0.00016438,2]
[404276107,1770023445856,-1870.90758698,0.00016438,2]
[404276110,1770023445868,-1870.90758698,0.00016438,2]
[404276112,1770023445881,-1779.48823898,0.00016438,2]
[404276115,1770023445894,-1870.90758698,0.00016438,2]
[404276117,1770023445907,-1779.48823898,0.00016438,2]
[404276119,1770023445919,-1779.48823898,0.00016438,2]
[404276121,1770023445931,-1870.90758698,0.00016438,2]
[404276124,1770023445943,-1779.48823898,0.00016438,2]
[404276126,1770023445954,-1870.90758698,0.00016438,2]
[404276128,1770023445967,-1779.48823898,0.00016438,2]
[404276131,1770023445980,-1779.48823898,0.00016438,2]
[404276148,1770023446268,-1870.90758698,0.00016438,2]
[404276149,1770023446295,-1779.48823898,0.00016438,2]
[404276150,1770023446315,-1779.48823898,0.00016438,2]
[404276151,1770023446325,-1870.90758698,0.00016438,2]
[404276152,1770023446334,-1779.48823898,0.00016438,2]
[404276153,1770023446343,-1779.48823898,0.00016438,2]
[404276154,1770023446353,-1779.48823898,0.00016438,2]
[404276155,1770023446362,-1779.48823898,0.00016438,2]
[404276156,1770023446372,-1779.48823898,0.00016438,2]
[404276157,1770023446381,-1779.48823898,0.00016438,2]
[404276158,1770023446390,-1779.48823898,0.00016438,2]
[404276159,1770023446399,-1779.48823898,0.00016438,2]
[404276160,1770023446409,-1779.48823898,0.00016438,2]
[404276161,1770023446418,-1779.48823898,0.00016438,2]
[404276162,1770023446427,-1779.48823898,0.00016438,2]
[404276163,1770023446437,-1779.48823898,0.00016438,2]
[404276164,1770023446445,-1779.48823898,0.00016438,2]
[404276165,1770023446455,-1779.48823898,0.00016438,2]
[404276166,1770023446464,-1779.48823898,0.00016438,2]
[404276167,1770023446473,-1779.48823898,0.00016438,2]
[404276168,1770023446486,-1779.48823898,0.00016438,2]
[404276169,1770023446495,-1870.90758698,0.00016438,2]
[404276170,1770023446503,-1779.48823898,0.00016438,2]
[404276171,1770023446513,-1779.48823898,0.00016438,2]
[404276172,1770023446521,-1779.48823898,0.00016438,2]
[404276173,1770023446531,-1870.90758698,0.00016438,2]
[404276174,1770023446539,-1779.48823898,0.00016438,2]
[404276175,1770023446548,-1779.48823898,0.00016438,2]
[404276176,1770023446558,-1779.48823898,0.00016438,2]
[404276177,1770023446567,-1870.90758698,0.00016438,2]
[404276178,1770023446576,-1870.90758698,0.00016438,2]
[404276179,1770023446585,-1779.48823898,0.00016438,2]
[404276180,1770023446595,-1779.48823898,0.00016438,2]
[404276181,1770023446604,-1779.48823898,0.00016438,2]
[404276182,1770023446613,-1779.48823898,0.00016438,2]
[404276183,1770023446623,-1870.90758698,0.00016438,2]
[404276184,1770023446632,-1779.48823898,0.00016438,2]
[404276185,1770023446641,-1779.48823898,0.00016438,2]
[404276186,1770023446650,-1870.90758698,0.00016438,2]
[404276187,1770023446659,-1779.48823898,0.00016438,2]
[404276188,1770023446671,-1779.48823898,0.00016438,2]
[404276189,1770023446681,-1779.48823898,0.00016438,2]
[404276190,1770023446692,-1870.90758698,0.00016438,2]
[404276191,1770023446701,-1779.48823898,0.00016438,2]
[404276192,1770023446711,-1779.48823898,0.00016438,2]
[404276193,1770023446720,-500.0,0.00016438,2]
[404276194,1770023446729,-583.52076571,0.00016438,2]
[404276195,1770023446740,-3647.51,0.00016438,2]
[404276196,1770023446750,-250.55733734,0.00016438,2]
[404276197,1770023446759,-800.78453244,0.00016438,2]
[404276198,1770023446768,-715.94,0.00016515,2]
[404276199,1770023446778,-643.18674336,0.00016568,2]
[404276200,1770023446787,-974.64879752,0.00016568,2]
[404276201,1770023446796,-1500.0,0.00016568,2]
[404276202,1770023446805,-1500.0,0.00016568,2]
[404276203,1770023446815,-619.84098311,0.00016568,2]
[404276204,1770023446825,-1500.0,0.00016568,2]
[404276205,1770023446834,-345.31167706,0.00016568,2]
[404276206,1770023446843,-1315.28060531,0.00016568,2]
[404276207,1770023446852,-165.40489721,0.00016568,2]
[404276208,1770023446861,-1500.0,0.00016568,2]
[404276209,1770023446870,-504.6853335,0.00016568,2]
[404276210,1770023446880,-1500.0,0.00016568,2]
[404276211,1770023446892,-1500.0,0.00016568,2]
[404276212,1770023446900,-1500.0,0.00016568,2]
[404276213,1770023446910,-505.24936027,0.00016568,2]
[404276214,1770023446919,-505.54193795,0.00016568,2]
[404276215,1770023446928,-1500.0,0.00016568,2]
[404276216,1770023446938,-276.88278142,0.00016568,2]
[404276217,1770023446947,-1500.0,0.00016568,2]
[404276218,1770023446956,-1500.0,0.00016568,2]
[404276219,1770023446965,-1500.0,0.00016568,2]
[404276220,1770023446974,-500.0,0.00016607,2]
[404276221,1770023446983,-153.85,0.00016647,2]
[404276222,1770023446992,-301.78,0.00016685,2]
[404276223,1770023447000,-256.86,0.00016685,2]
[404276224,1770023447011,-469.55,0.00016685,2]
[404276225,1770023447021,-1119.56,0.00016685,2]
[404276226,1770023447030,-242.15909246,0.00016695,2]
[404276227,1770023447039,-201.93286099,0.00016695,2]
[404276228,1770023447049,-242.15909246,0.00016695,2]
[404276229,1770023447059,-1651.81367706,0.00016695,2]
[404276230,1770023447068,-994.29561144,0.00016695,2]
[404276231,1770023447078,-159.99318318,0.0001671,2]
[404276232,1770023447087,-152.0,0.00016715,3]
[404276233,1770023447097,-163.0,0.0001672,2]
[404276234,1770023447106,-839.0,0.0001672,2]
[404276235,1770023447115,-163.0,0.0001672,2]
[404276236,1770023447125,-818.0,0.0001672,2]
[404276237,1770023447135,-2835.0,0.0001672,2]
[404276238,1770023447144,-1103.0,0.00016813,2]
[404276239,1770023447155,-500.0,0.00016821,2]
[404276240,1770023447165,-164.65,0.00016835,2]
[404276241,1770023447176,-727.0,0.00016844,2]
[404276242,1770023447186,-277.0,0.00016875,2]
[404276243,1770023447195,-1899.6725397,0.00016956,2]
[404276244,1770023447206,-10091.57601831,0.00016978,2]
[404276245,1770023447216,-274.4,0.00016984,2]
[404276246,1770023447225,-779.65372,0.00017,2]
[404276247,1770023447236,-300.0,0.00017,2]
[404276248,1770023447247,-256.42,0.00017006,2]
[404276249,1770023447257,-354.0,0.00017014,2]
[404276250,1770023447269,-163.0,0.0001704,2]
[404276251,1770023447279,-20746.00184979,0.00017091,2]
[404276252,1770023447288,-10809.27888246,0.00017091,2]
[404276253,1770023447299,-1500.0,0.000171,2]
[404276254,1770023447309,-715.94,0.00017112,2]
[404276255,1770023447319,-947.23523297,0.00017116,2]
[404276256,1770023447328,-508.230722,0.00017116,2]
[404276257,1770023447338,-1628.18837233,0.00017116,2]
[404276258,1770023447348,-2136.8475123,0.00017116,2]
[404276259,1770023447358,-458.07275487,0.00017116,2]
[404276260,1770023447367,-2000.0,0.00017116,2]
[404276261,1770023447379,-2000.0,0.00017116,2]
[404276262,1770023447389,-2000.0,0.00017116,2]
[404276263,1770023447398,-689.68040771,0.00017116,2]
[404276264,1770023447408,-2000.0,0.00017116,2]
[404276265,1770023447418,-506.20015718,0.00017116,2]
[404276266,1770023447429,-426.0,0.00017157,2]
[404276267,1770023447440,-263.78,0.00017166,2]
[404276268,1770023447450,-2768.0,0.00017216,2]
[404276269,1770023447460,-163.0,0.00017235,2]
[404276270,1770023447471,-772.93,0.00017238,2]
[404276271,1770023447481,-346.92554585,0.00017241,2]
[404276272,1770023447490,-599.60298507,0.00017242,2]
[404276273,1770023447500,-747.8093786,0.00017242,2]
[404276274,1770023447510,-227.86985187,0.00017243,2]
[404276275,1770023447521,-209.40437684,0.00017243,2]
[404276276,1770023447530,-251.11897888,0.00017243,2]
[404276277,1770023447539,-1712.93078312,0.00017243,2]
[404276278,1770023447548,-936.06414164,0.00017243,2]
[404276279,1770023447558,-1000.0,0.0001726,2]
[404276280,1770023447568,-2768.0,0.00017277,2]
[404276281,1770023447577,-929.792,0.00017282,2]
[404276282,1770023447587,-1205.0,0.00017282,2]
[404276283,1770023447596,-2454.841,0.00017282,2]
[404276284,1770023447606,-3253.0,0.00017282,2]
[404276285,1770023447615,-6579.0,0.00017282,2]
[404276286,1770023447624,-1124.59465326,0.00017326,2]
[404276287,1770023447633,-1606.36051471,0.00017326,2]
[404276288,1770023447643,-159.99318318,0.00017328,2]
[404276289,1770023447652,-163.0,0.0001736,2]
[404276290,1770023447662,-163.0,0.0001736,2]
[404276291,1770023447674,-163.0,0.0001736,2]
[404276292,1770023447686,-313.0,0.0001736,2]
[404276293,1770023447697,-163.0,0.0001736,2]
[404276294,1770023447709,-1500.0,0.000174,2]
[404276295,1770023447721,-2768.0,0.00017411,2]
[404276296,1770023447730,-179.25714854,0.00017438,2]
[404276297,1770023447741,-10139.4576,0.0001744,2]
[404276298,1770023447750,-1119.42,0.00017507,2]
[404276299,1770023447759,-1119.42,0.00017507,2]
[404276300,1770023447768,-559.85,0.00017507,2]
[404276301,1770023447777,-360.5,0.00017507,2]
[404276302,1770023447787,-180.29,0.00017507,2]
[404276303,1770023447796,-172.49,0.00017507,2]
[404276304,1770023447805,-180.29,0.00017507,2]
[404276305,1770023447814,-150.0,0.00017507,2]
[404276306,1770023447823,-345.02,0.00017507,2]
[404276307,1770023447832,-345.02,0.00017507,2]
[404276308,1770023447841,-5888.0,0.00017521,2]
[404276309,1770023447851,-1000.0,0.00017534,2]
[404276310,1770023447862,-500.0,0.00017539,2]
[404276311,1770023447872,-500.0,0.00017539,2]
[404276312,1770023447881,-500.0,0.00017539,2]
[404276313,1770023447892,-500.0,0.00017539,2]
[404276314,1770023447902,-500.0,0.00017539,2]
[404276315,1770023447912,-500.0,0.00017539,2]
[404276316,1770023447923,-500.0,0.00017539,2]
[404276317,1770023447932,-500.0,0.00017539,2]
[404276318,1770023447942,-305.59094054,0.00017539,2]
[404276319,1770023447951,-501.65808069,0.0001754,2]
[404276320,1770023447961,-487.0,0.0001754,2]
[404276321,1770023447970,-487.0,0.0001754,2]
[404276322,1770023447981,-487.0,0.0001754,2]
[404276323,1770023447991,-487.0,0.0001754,2]
[404276324,1770023448001,-487.0,0.0001754,2]
[404276325,1770023448012,-487.0,0.0001754,2]
[404276326,1770023448022,-487.0,0.0001754,2]
[404276327,1770023448032,-487.0,0.0001754,2]
[404276328,1770023448042,-487.0,0.0001754,2]
[404276329,1770023448051,-487.0,0.0001754,2]
[404276330,1770023448061,-487.0,0.0001754,2]
[404276331,1770023448070,-487.0,0.0001754,2]
[404276332,1770023448079,-487.0,0.0001754,2]
[404276333,1770023448091,-487.0,0.0001754,2]
[404276334,1770023448101,-487.0,0.0001754,2]
[404276335,1770023448110,-487.0,0.0001754,2]
[404276336,1770023448120,-487.0,0.0001754,2]
[404276337,1770023448130,-487.0,0.0001754,2]
[404276338,1770023448139,-487.0,0.0001754,2]
[404276339,1770023448148,-487.0,0.0001754,2]
[404276340,1770023448158,-487.0,0.0001754,2]
[404276341,1770023448167,-487.0,0.0001754,2]
[404276342,1770023448176,-487.0,0.0001754,2]
[404276343,1770023448187,-487.0,0.0001754,2]
[404276344,1770023448197,-487.0,0.0001754,2]
[404276345,1770023448207,-487.0,0.0001754,2]
[404276346,1770023448218,-487.0,0.0001754,2]
[404276347,1770023448229,-487.0,0.0001754,2]
[404276348,1770023448239,-487.0,0.0001754,2]
[404276349,1770023448249,-487.0,0.0001754,2]
[404276350,1770023448259,-487.0,0.0001754,2]
[404276351,1770023448268,-487.0,0.0001754,2]
[404276352,1770023448277,-487.0,0.0001754,2]
[404276353,1770023448288,-487.0,0.0001754,2]
[404276354,1770023448298,-487.0,0.0001754,2]
[404276355,1770023448308,-499.0,0.0001754,2]
[404276356,1770023448318,-5841.0,0.00017598,2]
[404276357,1770023448327,-3012.2001319,0.0001764,2]
[404276358,1770023448337,-1103.0,0.00017653,2]
[404276359,1770023448346,-502.03881526,0.00017664,2]
[404276360,1770023448356,-1002.53462592,0.00017664,2]
[404276361,1770023448366,-716.63993214,0.00017664,2]
[404276362,1770023448375,-1504.86417643,0.00017664,2]
[404276363,1770023448385,-152.0,0.00017679,4]
[404276364,1770023448395,-163.0,0.0001768,2]
[404276365,1770023448404,-2835.0,0.0001768,2]
[404276366,1770023448414,-163.0,0.0001768,2]
[404276367,1770023448424,-163.0,0.0001768,2]
[404276368,1770023448433,-163.0,0.0001768,2]
[404276369,1770023448443,-1500.0,0.000177,2]
[404276370,1770023448452,-715.94,0.00017709,2]
[404276371,1770023448462,-2509.549,0.00017733,2]
[404276372,1770023448471,-176.721,0.00017771,2]
[404276373,1770023448481,-5888.0,0.00017785,2]
[404276374,1770023448490,-217.15233878,0.00017791,2]
[404276375,1770023448499,-260.4103811,0.00017791,2]
[404276376,1770023448508,-1776.30922209,0.00017791,2]
[404276377,1770023448518,-164.64,0.000178,2]
[404276378,1770023448527,-500.0,0.00017808,2]
[404276379,1770023448537,-1000.0,0.00017808,2]
[404276380,1770023448547,-566.0,0.00017808,2]
[404276381,1770023448556,-387.0,0.00017816,2]
[404276382,1770023448565,-224.69377671,0.00017824,2]
[404276383,1770023448575,-336.12845191,0.00017824,2]
[404276384,1770023448584,-454.7862,0.00017824,2]
[404276385,1770023448593,-2768.0,0.00017842,2]
[404276386,1770023448603,-1000.0,0.00017848,2]
[404276387,1770023448614,-150.0,0.00017852,2]
[404276388,1770023448625,-200.0,0.00017855,2]
[404276389,1770023448634,-200.0,0.00017856,2]
[404276390,1770023448643,-200.0,0.00017856,2]
[404276391,1770023448652,-200.0,0.00017856,2]
[404276392,1770023448664,-500.0,0.00017863,2]
[404276393,1770023448674,-1000.0,0.0001787,2]
[404276394,1770023448683,-25000.0,0.00017876,3]
[404276395,1770023448694,-153.85,0.0001788,2]
[404276396,1770023448704,-25000.0,0.00017884,3]
[404276397,1770023448714,-25000.0,0.00017893,3]
[404276398,1770023448724,-20406.3363,0.000179,2]
[404276399,1770023448734,-1000.0,0.000179,2]
[404276400,1770023448745,-10000.0,0.000179,2]
[404276401,1770023448755,-20746.00184979,0.000179,2]
[404276402,1770023448765,-10809.27888246,0.000179,2]
[404276403,1770023448775,-25000.0,0.00017902,3]
[404276404,1770023448784,-25000.0,0.00017911,3]
[404276405,1770023448793,-500.0,0.00017918,2]
[404276406,1770023448802,-25000.0,0.0001792,3]
[404276407,1770023448811,-25000.0,0.00017928,3]
[404276408,1770023448820,-25000.0,0.00017937,3]
[404276409,1770023448830,-25000.0,0.00017937,3]
[404276410,1770023448841,-25000.0,0.00017946,3]
[404276411,1770023448851,-25000.0,0.00017946,3]
[404276412,1770023448862,-159.99318318,0.00017947,2]
[404276413,1770023448871,-200.009499,0.00017954,2]
[404276414,1770023448881,-150.0,0.00017954,2]
[404276415,1770023448890,-25000.0,0.00017955,3]
[404276416,1770023448900,-25000.0,0.00017955,3]
[404276417,1770023448909,-25000.0,0.00017964,3]
[404276418,1770023448918,-25000.0,0.00017964,3]
[404276419,1770023448927,-153.21504762,0.0001797,2]
[404276420,1770023448936,-506.1208044,0.00017972,2]
[404276421,1770023448951,-25000.0,0.00017972,3]
[404276422,1770023448960,-25000.0,0.00017972,3]
[404276423,1770023448970,-25000.0,0.00017981,3]
[404276424,1770023448979,-25000.0,0.00017981,3]
[404276425,1770023448988,-500.0,0.00017982,2]
[404276426,1770023448997,-517.86422234,0.00017989,2]
[404276427,1770023449006,-25000.0,0.0001799,3]
[404276428,1770023449015,-25000.0,0.0001799,3]
[404276429,1770023449024,-5800.0,0.00017992,2]
[404276430,1770023449033,-248.17115062,0.00017999,2]
[404276431,1770023449043,-155.0,0.00017999,2]
[404276432,1770023449052,-300.0,0.00017999,2]
[404276433,1770023449062,-299.809,0.00017999,2]
[404276434,1770023449071,-300.0,0.00017999,2]
[404276435,1770023449081,-2117360.67080933,0.00018,2]
[404276436,1770023449090,-7500.35840853,0.00018,2]
[404276437,1770023449100,-109514.78915317,0.00018,2]
[404276438,1770023449109,-1512807.10072125,0.00018,2]
[404276439,1770023449118,-150.0,0.00018,2]
[404276440,1770023449127,-2348.91140711,0.00018,2]
[404276441,1770023449137,-150.0,0.00018,2]
[404276442,1770023449147,-1116.44,0.00018,2]
[404276443,1770023449156,-456.03157398,0.00018,2]
[404276444,1770023449166,-1000.0,0.00018,2]
[404276445,1770023449175,-1000.0,0.00018,2]
[404276446,1770023449183,-1000.0,0.00018,2]
[404276447,1770023449192,-1000.0,0.00018,2]
[404276448,1770023449202,-1000.0,0.00018,2]
[404276449,1770023449212,-1000.0,0.00018,2]
[404276450,1770023449222,-1000.0,0.00018,2]
[404276451,1770023449231,-1000.0,0.00018,2]
[404276452,1770023449241,-1000.0,0.00018,2]
[404276453,1770023449252,-1000.0,0.00018,2]
[404276454,1770023449264,-1000.0,0.00018,2]
[404276455,1770023449274,-1000.0,0.00018,2]
[404276456,1770023449284,-1000.0,0.00018,2]
[404276457,1770023449293,-1000.0,0.00018,2]
[404276458,1770023449302,-1000.0,0.00018,2]
[404276459,1770023449315,-1000.0,0.00018,2]
[404276460,1770023449325,-1000.0,0.00018,2]
[404276461,1770023449334,-1000.0,0.00018,2]
[404276462,1770023449344,-1000.0,0.00018,2]
[404276463,1770023449354,-1000.0,0.00018,2]
[404276464,1770023449364,-1000.0,0.00018,2]
[404276465,1770023449374,-1000.0,0.00018,2]
[404276466,1770023449383,-1000.0,0.00018,2]
[404276467,1770023449393,-1141.04007611,0.00018,2]
[404276468,1770023449404,-1000.0,0.00018,2]
[404276469,1770023449413,-5800.0,0.00018,2]
[404276470,1770023449423,-267.0,0.00018,2]
[404276471,1770023449433,-151.0,0.00018,2]
[404276472,1770023449442,-150.0,0.00018,2]
[404276473,1770023449611,-200.0,0.00018,2]
[404276474,1770023449621,-229.207,0.00018,2]
[404276475,1770023449632,-196.165,0.00018,2]
[404276476,1770023449642,-277.537,0.00018,2]
[404276477,1770023449651,-225.99,0.00018,2]
[404276478,1770023449664,-158.892,0.00018,2]
[404276479,1770023449674,-299.072,0.00018,2]
[404276480,1770023449685,-191.621,0.00018,2]
[404276481,1770023449695,-164.381,0.00018,2]
[404276482,1770023449706,-212.735,0.00018,2]
[404276483,1770023449717,-235.665,0.00018,2]
[404276484,1770023449727,-232.348,0.00018,2]
[404276485,1770023449737,-171.0,0.00018,2]
[404276486,1770023449748,-1284.16393121,0.00018,2]
[404276487,1770023449759,-200.0,0.00018,2]
[404276488,1770023449768,-200.0,0.00018,2]
[404276489,1770023449777,-732.231,0.00018,2]
[404276490,1770023449786,-1503.0,0.00018,2]
[404276491,1770023449796,-1338.357,0.00018,2]
[404276492,1770023449806,-162.264,0.00018,2]
[404276493,1770023449816,-1410.0,0.00018,2]
[404276494,1770023449826,-3481.0,0.00018,2]
[404276495,1770023449835,-1277.693,0.00018,2]
[404276496,1770023449844,-204.768,0.00018,2]
[404276497,1770023449853,-151.0,0.00018,2]
[404276498,1770023449864,-275.4926301,0.00018,2]
[404276499,1770023449874,-5800.0,0.00018,2]
[404276500,1770023449883,-2000.0,0.00018,2]
[404276501,1770023449893,-2000.0,0.00018,2]
[404276502,1770023449903,-2000.0,0.00018,2]
[404276503,1770023449913,-2000.0,0.00018,2]
[404276504,1770023449923,-2000.0,0.00018,2]
[404276505,1770023449933,-2000.0,0.00018,2]
[404276506,1770023449942,-1000.0,0.00018,2]
[404276507,1770023449952,-1000.0,0.00018,2]
[404276508,1770023449962,-1000.0,0.00018,2]
[404276509,1770023449972,-1000.0,0.00018,2]
[404276510,1770023449983,-1000.0,0.00018,2]
[404276511,1770023449994,-200.896366,0.00018,2]
[404276512,1770023450004,-1000.0,0.00018,2]
[404276513,1770023450013,-1000.0,0.00018,2]
[404276514,1770023450023,-1500.0,0.00018,2]
[404276515,1770023450032,-171.08,0.00018048,2]
[404276516,1770023450041,-986.0,0.00018057,2]
[404276517,1770023450051,-300.0,0.00018071,2]
[404276518,1770023450062,-300.0,0.00018071,2]
[404276519,1770023450071,-5888.0,0.00018072,2]
[404276520,1770023450080,-3336.0,0.00018077,2]
[404276521,1770023450089,-1000.0,0.00018082,2]
[404276522,1770023450098,-3336.0,0.00018107,2]
[404276523,1770023450107,-3336.0,0.00018114,2]
[404276524,1770023450117,-200.0,0.00018128,2]
[404276525,1770023450126,-5841.0,0.00018156,2]
[404276526,1770023450135,-3336.0,0.00018161,2]
[404276527,1770023450144,-200.0,0.0001818,2]
[404276528,1770023450153,-200.0,0.0001818,2]
[404276529,1770023450162,-300.0,0.00018185,2]
[404276530,1770023450171,-300.0,0.00018213,2]
[404276531,1770023450180,-5888.0,0.00018214,2]
[404276532,1770023450189,-300.0,0.00018224,2]
[404276533,1770023450198,-5888.0,0.00018225,2]
[404276534,1770023450208,-191.65,0.000183,7]
[404276535,1770023450218,-715.94,0.00018306,2]
[404276536,1770023450229,-175.85,0.00018313,2]
[404276537,1770023450240,-370.60265536,0.00018328,2]
[404276538,1770023450250,-150.0,0.00018329,2]
[404276539,1770023450259,-154.54,0.00018329,2]
[404276540,1770023450268,-175.91,0.00018329,2]
[404276541,1770023450278,-172.49,0.00018329,2]
[404276542,1770023450288,-150.0,0.00018329,2]
[404276543,1770023450298,-172.49,0.00018329,2]
[404276544,1770023450307,-172.49,0.00018329,2]
[404276545,1770023450317,-150.0,0.00018329,2]
[404276546,1770023450327,-172.49,0.00018329,2]
[404276547,1770023450336,-172.53,0.00018329,2]
[404276548,1770023450346,-153.13,0.00018329,2]
[404276549,1770023450356,-2768.0,0.00018336,2]
[404276550,1770023450366,-225.18697532,0.00018339,2]
[404276551,1770023450376,-270.0455652,0.00018339,2]
[404276552,1770023450385,-1842.03266331,0.00018339,2]
[404276553,1770023450395,-5888.0,0.00018342,2]
[404276554,1770023450405,-1503.0,0.00018353,2]
[404276555,1770023450414,-1503.0,0.00018353,2]
[404276556,1770023450423,-1503.0,0.00018353,2]
[404276557,1770023450432,-1503.0,0.00018353,2]
[404276558,1770023450441,-1503.0,0.00018353,2]
[404276559,1770023450451,-1503.0,0.00018353,2]
[404276560,1770023450460,-1503.0,0.00018353,2]
[404276561,1770023450469,-1503.0,0.00018353,2]
[404276562,1770023450479,-151.0,0.00018353,2]
[404276563,1770023450488,-1503.0,0.00018353,2]
[404276564,1770023450497,-151.0,0.00018353,2]
[404276565,1770023450506,-1273.90301283,0.00018353,2]
[404276566,1770023450516,-151.0,0.00018353,2]
[404276567,1770023450526,-151.0,0.00018353,2]
[404276568,1770023450536,-151.0,0.00018353,2]
[404276569,1770023450547,-151.0,0.00018353,2]
[404276570,1770023450557,-151.0,0.00018353,2]
[404276571,1770023450568,-151.0,0.00018353,2]
[404276572,1770023450577,-224.75797747,0.00018353,2]
[404276573,1770023450587,-167.0,0.00018353,2]
[404276574,1770023450596,-166.01782935,0.00018353,2]
[404276575,1770023450605,-1503.0,0.00018353,2]
[404276576,1770023450615,-1501.0,0.00018353,2]
[404276577,1770023450624,-151.0,0.00018353,2]
[404276578,1770023450634,-265.87464603,0.00018353,2]
[404276579,1770023450643,-1503.0,0.00018353,2]
[404276580,1770023450654,-1503.0,0.00018353,2]
[404276581,1770023450664,-1503.0,0.00018353,2]
[404276582,1770023450678,-1503.0,0.00018353,2]
[404276583,1770023450687,-1503.0,0.00018353,2]
[404276584,1770023450696,-1503.0,0.00018353,2]
[404276585,1770023450706,-1503.0,0.00018353,2]
[404276586,1770023450715,-1503.0,0.00018353,2]
[404276587,1770023450725,-1503.0,0.00018353,2]
[404276588,1770023450734,-1503.0,0.00018353,2]
[404276589,1770023450744,-1503.0,0.00018353,2]
[404276590,1770023450753,-610.55884105,0.00018353,2]
[404276591,1770023450763,-986.0,0.00018353,2]
[404276592,1770023450773,-1000.0,0.00018356,2]
[404276593,1770023450783,-200.0,0.00018362,2]
[404276594,1770023450792,-200.0,0.00018362,2]
[404276595,1770023450801,-2768.0,0.00018367,2]
[404276596,1770023450811,-175.85,0.00018412,2]
[404276597,1770023450820,-154.57184374,0.00018447,2]
[404276598,1770023450830,-2768.0,0.00018463,2]
[404276599,1770023450839,-2768.0,0.00018473,2]
[404276600,1770023450848,-175.85,0.00018511,2]
[404276601,1770023450858,-1103.0,0.00018536,2]
[404276602,1770023450867,-200.0,0.00018545,2]
[404276603,1770023450876,-200.0,0.00018545,2]
[404276604,1770023450885,-159.99318318,0.00018566,2]
[404276605,1770023450894,-160.29,0.000186,2]
[404276606,1770023450903,-1500.0,0.000186,2]
[404276607,1770023450913,-359.76179104,0.0001861,2]
[404276608,1770023450922,-5888.0,0.00018622,2]
[404276609,1770023450931,-5888.0,0.00018628,2]
[404276610,1770023450940,-1000.0,0.0001863,2]
[404276611,1770023450950,-986.0,0.00018634,2]
[404276612,1770023450959,-152.0,0.00018644,5]
[404276613,1770023450969,-200.0,0.00018731,2]
[404276614,1770023450978,-200.0,0.00018731,2]
[404276615,1770023450988,-303.20164028,0.00018759,2]
[404276616,1770023450997,-1600.0,0.00018821,2]
[404276617,1770023451006,-233.51889341,0.00018887,2]
[404276618,1770023451016,-280.03725112,0.00018887,2]
[404276619,1770023451026,-1910.18787185,0.00018887,2]
[404276620,1770023451036,-153.79594173,0.000189,2]
[404276621,1770023451045,-151.0,0.000189,2]
[404276622,1770023451056,-151.0,0.000189,2]
[404276623,1770023451069,-151.0,0.000189,2]
[404276624,1770023451080,-157.47759902,0.000189,2]
[404276625,1770023451090,-151.0,0.000189,2]
[404276626,1770023451100,-151.0,0.000189,2]
[404276627,1770023451109,-1999.0,0.00018904,2]